Cogmind - Beta 11.1 @@@ ROGUE MODE // 2022.05.02 @ 19:38:03 Player: Olga Result: Self-destructed Performance ------------- Evolutions (1) 500 Regions Visited (2) 400 Robots Destroyed (5) 25 Value Destroyed (111) 111 Prototype IDs (0) 0 Alien Tech Used (0) 0 Bonus (0) 0 TOTAL SCORE: 1036 Bonus ------- None Cogmind --------- Core Integrity 400/400 Matter 203/300 Energy 100/100 System Corruption 0% Temperature Cool (0) Movement Flying (40) Location -9/Materials Parts ------- > --- POWER (1) -------- (None) > --- PROPULSION (2) --- Flight Unit > --- UTILITY (4) ------ Signal Interpreter Improved Targeting Computer Core Shielding Improved Propulsion Shielding > --- WEAPON (2) ------- Light Assault Rifle > --- INVENTORY (5) ---- Small Storage Unit Improved Propulsion Shielding Improved Propulsion Shielding Improved Propulsion Shielding Grenade Launcher Peak State ------------ > --- POWER ------------ (None) > --- PROPULSION ------- Flight Unit > --- UTILITY ---------- Signal Interpreter Improved Targeting Computer Core Shielding Improved Propulsion Shielding > --- WEAPON ----------- Light Assault Rifle > --- INVENTORY -------- Small Storage Unit Improved Propulsion Shielding Improved Propulsion Shielding Improved Propulsion Shielding Grenade Launcher [Rating: 10] Favorites ----------- Power None Propulsion Flight Unit Hover Unit Improved Hover Unit Flight Unit Flight Unit Utility Signal Interpreter Processor Signal Interpreter Protection Core Shielding Weapon Light Assault Rifle Ballistic Gun Light Assault Rifle Build | -11 -10 -9 ------- Run | Scr Mat Mat Slots Evolved 2 | . . 2 Power . | . . . Propulsion . | . . . Utility 2 | . . 2 Weapon . | . . . Parts Attached 8 | 2 3 3 Power . | . . . Engine . | . . . Core . | . . . Reactor . | . . . Propulsion 2 | . 1 1 Treads . | . . . Leg . | . . . Wheel . | . . . Hover 1 | . . 1 Flight 1 | . 1 . Utility 4 | . 2 2 Device . | . . . Storage . | . . . Processor 2 | . 1 1 Hackware . | . . . Protection 2 | . 1 1 Artifact . | . . . Weapon 2 | 2 . . Energy Gun . | . . . Energy Cannon . | . . . Ballistic Gun 2 | 2 . . Ballistic Cannon . | . . . Launcher . | . . . Special Weapon . | . . . Impact Weapon . | . . . Slashing Weapon . | . . . Piercing Weapon . | . . . Special Melee Weapon . | . . . Unidentified Prototypes . | . . . Parts Lost 1 | . 1 . Power . | . . . Propulsion . | . . . Utility . | . . . Weapon 1 | . 1 . Highest Loss Streak 1 | . 1 . To Critical Strikes . | . . . Average Slot Usage (%) 53 | . 52 58 Flight 3 | . 1 11 Processor 13 | . 13 18 Protection 11 | . 10 14 Ballistic Gun 23 | . 26 11 Naked Turns . | . . . Heaviest Build 4 | 2 3 4 Greatest Support 7 | 3 4 7 Greatest Overweight (x) . | . . . Average Overweight (x) . | . . . Largest Inventory Capacity 5 | 5 5 5 Average Capacity 5 | 5 5 5 Most Carried 5 | 5 5 5 Average Carried 4 | 4 4 4 Final Capacity 5 | 5 5 5 Final Carried 5 | 5 5 5 Class Distribution -------------------- 100% | Mutant Dominant Class ---------------- Mutant | -10/Materials Mutant | -9/Materials Resources | -11 -10 -9 ----------- Run | Scr Mat Mat Matter Collected 212 | 200 12 . Remotely . | . . . Salvage Created 137 | . 137 . Parts 10 | . 10 . Haulers Intercepted . | . . . Recyclers Shooed . | . . . Parts Field Recycled . | . . . Retrieved Matter . | . . . Parts Self-Destructed . | . . . Prevented . | . . . Kills | -11 -10 -9 ------- Run | Scr Mat Mat Combat Hostiles Destroyed 5 | . 5 . Guns 5 | . 5 . Classes Destroyed 2 | . 2 . Swarmer 3 | . 3 . Grunt 2 | . 2 . Best Kill Streak 5 | . 5 . Combat Bots Only 5 | . 5 . Max Kills in Single Turn 1 | . 1 . Gunslinging . | . . . Exploded . | . . . Melee . | . . . Uniques/NPCs Destroyed . | . . . Combat | -11 -10 -9 -------- Run | Scr Mat Mat Damage Taken 210 | . 210 . Core 74 | . 74 . Absorbed by Shields . | . . . Redirected to Shielding 15 | . 15 . Core Remaining (%) 85 | 100 70 . Volleys Fired 18 | . 18 . Largest 2 | . 2 . Hottest 40 | . 40 . Shots Fired 34 | . 34 . Gun 34 | . 34 . Cannon . | . . . Launcher . | . . . Special . | . . . Kinetic 34 | . 34 . Thermal . | . . . Explosive . | . . . Electromagnetic . | . . . Robot Hit Streak 6 | . 6 . Robot Miss Streak 2 | . 2 . Penetration Max . | . . . Secondary Targets . | . . . Shots Hit Robots 23 | . 23 . Core Hits 12 | . 12 . Critical Kills . | . . . Critical Parts Destroyed . | . . . Critical Strikes . | . . . Melee Attacks . | . . . Impact . | . . . Slashing . | . . . Piercing . | . . . Sneak Attacks . | . . . Combat Hostiles . | . . . Follow-up Attacks . | . . . Damage Inflicted 181 | . 181 . Guns 181 | . 181 . Cannons . | . . . Explosions . | . . . Melee . | . . . Ramming . | . . . Kinetic 181 | . 181 . Thermal . | . . . Explosive . | . . . Electromagnetic . | . . . Impact . | . . . Slashing . | . . . Piercing . | . . . Highest Corruption . | . . . Average Corruption . | . . . Corruption Purged . | . . . Corruption Blocked . | . . . Overload Shots . | . . . Overflow Damage . | . . . Projectiles . | . . . Explosions . | . . . Melee . | . . . Knockbacks . | . . . Impact . | . . . Kinetic . | . . . Secondary . | . . . Self-Inflicted Damage . | . . . Shots . | . . . Rammed . | . . . Targets Rammed . | . . . Kicked . | . . . Crushed . | . . . Highest Temperature 22 | . 22 . Average Temperature 6 | . 6 . Received Heat Transfer 90 | . 90 . Siege Activations . | . . . Robots Corrupted . | . . . Combat Hostiles . | . . . Parts Fried . | . . . Impact Corruptions . | . . . Robots Melted . | . . . Combat Hostiles . | . . . Parts Melted . | . . . Heat Transferred . | . . . Parts Sabotaged . | . . . Parts Stolen . | . . . Parts Stripped . | . . . Power Chain Reactions . | . . . Missiles Intercepted . | . . . Alert | -11 -10 -9 ------- Run | Scr Mat Mat Peak Influence 203 | . 203 85 Initial 85 | . . 85 Average 62 | . 59 85 Maximum Alert Level 1 | . 1 . Low Security (%) 98 | 100 98 100 Level 1 1 | . 1 . Level 2 . | . . . Level 3 . | . . . Level 4 . | . . . Level 5 . | . . . High Security . | . . . Max Security . | . . . Squads Dispatched 3 | . 2 1 Investigation . | . . . Extermination . | . . . Reinforcement 3 | . 2 1 Assault . | . . . Garrison . | . . . Intercept . | . . . Searches Triggered . | . . . Construction Impeded . | . . . Haulers Reinforced . | . . . Active Scanning Responses . | . . . Cargo Convoy Interrupts . | . . . Stealth | -11 -10 -9 --------- Run | Scr Mat Mat Distress Signals 1 | . 1 . Communications Jammed . | . . . Distress Signals . | . . . Times Spotted 14 | . 11 3 Peak Tracking Total 7 | . 7 3 Tactical Retreats . | . . . Traps | -11 -10 -9 ------- Run | Scr Mat Mat Traps Triggered . | . . . Indirectly . | . . . Trap Hack Attempts . | . . . Triggered . | . . . Disarmed . | . . . Reprogrammed . | . . . Reused . | . . . Traps Extracted . | . . . Installed . | . . . Triggered . | . . . Machines | -11 -10 -9 ---------- Run | Scr Mat Mat Machines Disabled . | . . . Max in Single Turn . | . . . Machines Sabotaged . | . . . Garrisons Compromised . | . . . Overloaded Fab Kills . | . . . Hacking | -11 -10 -9 --------- Run | Scr Mat Mat Machines Accessed 3 | . 3 . Terminals 3 | . 3 . Fabricators . | . . . Repair Stations . | . . . Recycling Units . | . . . Scanalyzers . | . . . Garrison Access . | . . . Total Hacks 6 | . 6 . Successful 3 | . 3 . Failed 3 | . 3 . Catastrophic . | . . . Database Lockouts . | . . . Manual 6 | . 6 . Terminals 6 | . 6 . Fabricators . | . . . Repair Stations . | . . . Recycling Units . | . . . Scanalyzers . | . . . Garrison Access . | . . . Terminal Hacks 3 | . 3 . Terminal Index 1 | . 1 . Zone Layout 2 | . 2 . Fabricator Hacks . | . . . Repair Station Hacks . | . . . Recycling Unit Hacks . | . . . Scanalyzer . | . . . Garrison Access Hacks . | . . . Unauthorized Hacks . | . . . Terminals . | . . . Fabricators . | . . . Repair Stations . | . . . Recycling Units . | . . . Scanalyzers . | . . . Garrison Access . | . . . Data Cores Recovered . | . . . Used . | . . . Hacking Detections 3 | . 3 . Full Trace Events . | . . . Feedback Events . | . . . Feedback Blocked . | . . . Robot Schematics Acquired . | . . . Robots Built . | . . . Authchips . | . . . Time . | . . . Total Robot Build Rating . | . . . Part Schematics Acquired . | . . . Parts Built . | . . . Authchips . | . . . Time . | . . . Total Part Build Rating . | . . . Parts Repaired . | . . . Time . | . . . Parts Recycled . | . . . Recycled Matter . | . . . Retrieved Matter . | . . . Retrieved Components . | . . . Parts Scanalyzed . | . . . Part Schematics Acquired . | . . . Parts Damaged . | . . . Bothacking | -11 -10 -9 ------------ Run | Scr Mat Mat Used RIF Installer . | . . . Robots Hacked . | . . . Non-combat . | . . . Combat . | . . . Robot Hacks Applied . | . . . Relay Couplers Released . | . . . Fabnet Peak Effective % . | . . . Robots Rewired . | . . . Allies Hacked . | . . . Hacks Repelled . | . . . Allies | -11 -10 -9 -------- Run | Scr Mat Mat Total Allies . | . . . Largest Group . | . . . Highest-Rated Group . | . . . Highest-Rated Ally . | . . . Total Orders . | . . . Ally Attacks . | . . . Total Damage . | . . . Kills . | . . . Allies Corrupted . | . . . Allies Melted . | . . . Intel | -11 -10 -9 ------- Run | Scr Mat Mat Robot Analysis Total . | . . . Derelict Logs Recovered . | . . . Drone Launches . | . . . Drone Recoveries . | . . . Exploration | -11 -10 -9 ------------- Run | Scr Mat Mat Turns Passed 184 | 7 143 34 Spaces Moved 172 | 4 118 50 Core 93 | 4 89 . Treads . | . . . Legs . | . . . Wheels . | . . . Hover 18 | . . 18 Flight 61 | . 29 32 Fastest Speed 40 | 50 40 40 Average Speed 47 | 50 47 47 Slowest Speed 60 | 50 50 60 Overloaded Moves . | . . . Propulsion Burnouts . | . . . Robots Hopped 3 | . 3 . Cave-ins Triggered . | . . . Exploration Rate (%) 13 | 2 31 7 Regions Visited 2 Branch Regions . Pre-discovered Areas . | . . . Known Exits Taken 1 | . 1 . Unknown Exits Taken 1 | 1 . . Scrap Searched . | . . . Spaces Dug . | . . . Terrain Destroyed . | . . . Melee . | . . . Projectile . | . . . AOE . | . . . Terrain Rammed . | . . . Walls Destroyed . | . . . Machines Disabled . | . . . Actions | -11 -10 -9 --------- Run | Scr Mat Mat Total 241 | 7 174 60 Wait 33 | . 33 . Move 164 | 3 111 50 Hop 3 | . 3 . Pick Up 7 | 1 3 3 Fast Attach 8 | 2 3 3 Attach . | . . . Detach . | . . . Swap . | . . . Drop 8 | 1 3 4 Fire 18 | . 18 . Melee . | . . . Ram . | . . . Kick . | . . . Crush . | . . . Escape Stasis . | . . . Rewire . | . . . Trap . | . . . Miscellaneous . | . . . Route ------- -11/Scrapyard -10/Materials -9/Materials History --------- Turn | Location | Event 1 | -11/Scrapyard | Released all parts (6) 1 | -11/Scrapyard | Discovered new exit (range 2) 8 | -11/Scrapyard | Entered Materials 146 | -10/Materials | Discovered new exit (range 15) 151 | -10/Materials | Identified exit to Materials 151 | -10/Materials | Entered another Materials area 151 | -9/Materials | Evolved 2 slots: Utility x2 185 | -9/Materials | Self-destructed Last Messages --------------- 00141_ Acquired 12 matter. 00143_ K-01 Serf collects debris. 00146_ EXIT=FOUND 00147_ K-01 Serf collects debris. 00151_ EXIT=IDENTIFIED: MATERIALS PARAMETERS=UTILITY+2 LOCATION=MATERIALS GOAL=ESCAPE 00154_ Acquired Imp. Hover Unit. 00162_ ALERT: Hostiles spotted, dispatching reinforcements to Terminal M002. 00166_ Acquired Imp. Targeting Computer. 00168_ Dropped Imp. Hover Unit. 00173_ Acquired Imp. Propulsion Shielding. 00175_ Dropped Ion Engine. 00175_ Dropped Lgt. Assault Rifle. 00176_ Acquired Imp. Propulsion Shielding. 00179_ Dropped Signal Interpreter. 00179_ Acquired Imp. Propulsion Shielding. 00185_ Connecting with Terminal... Map ----- +----------------------------------------------------+ | ?????????????????????????????????????????????????? | | ?????????????????????????????????????????????????? | | ?????????????????????????????????????????????????? | | ?????????????????????????????????????????????????? | | ?????????????????????????????????????????????????? | | ?????????????????????????????????????????????????? | | ?????????????????????????????????????????????????? | | ?????????????????????????????????????????????????? | | ?????????????????????????????????????????????????? | | ?????????????????????????????????????????????????? | | ?????????????????????????????????????????????????? | | ??????????????????????????? ???????????????????? | | ??????????????????????????# #??????????????????? | | ??????????????????????????# g #??????????????????? | | ??????????????????????????# #################??? | | ??????????????????? ##+### ## #??? | | ???????????????????? # g ## #??? | | ???????????????????? g ## #??? | | ?????????????????????# ## = #??? | | ?????????????????????# ## """ """ #??? | | ?????????????????????# ## """ """ #??? | | ?????????????????????# ## """ """ #??? | | ????????????????????## """ ## #??? | | ????????????????????# """ ######+######?? | | ????????????????????# "T" """ #?? | | ????????????????????+ @ #?? | | ????????????????????# #?? | | ????????????????????# ###### #####+####+# | | ????????????????????#######????# [#?# # | | ???????????????????????????????#!!== *#?# """""# | | ???????????????????????????????#!!==! #?# """""# | | ???????????????????????????????########?# """""# | | ????????????????????????????????????????# """""? | | ????????????????????????????????????????# """"?? | | ????????????????????????????????????????# """"?? | | ????????????????????????????????????????# """"?? | | ????????????????????????????????????????# ?? | | ????????????????????????????????????????########?? | | ?????????????????????????????????????????????????? | | ?????????????????????????????????????????????????? | | ?????????????????????????????????????????????????? | | ?????????????????????????????????????????????????? | | ?????????????????????????????????????????????????? | | ?????????????????????????????????????????????????? | | ?????????????????????????????????????????????????? | | ?????????????????????????????????????????????????? | | ?????????????????????????????????????????????????? | | ?????????????????????????????????????????????????? | | ?????????????????????????????????????????????????? | | ?????????????????????????????????????????????????? | +----------------------------------------------------+ Best States ------------- Heat Dissipation 28 Energy Generation 5 Energy Capacity 100 Matter Stores 280 Matter Capacity 300 Sight Range 16 Terrain Scan Density 10 Core Shielding 20 Propulsion Shielding 66 Evasion (%) 62 Targeting Accuracy 6 Item Schematics ----------------- None Robot Schematics ------------------ None Fabricated ------------ Nothing Alien Tech Used ----------------- None Achievements -------------- None Challenges ------------ None Game ------ Seed CompactKineticThermoblaster Manual? 0 Play Time 00:04:14 Cumulative 163.5 hours Start 2022.05.02 @ 19:34:46 End 2022.05.02 @ 19:38:03 Sessions 1 Manual Loads 0 Difficulty Rogue Special Mode None Game No. 267 Rogue 266 Adventurer 0 Explorer 1 Win Type - Total 7 Types 7/0/0/0/0/0/0/0/0 Lore% 61 Gallery% 63 Achievement% 53 Wizard Run 0 Options --------- ASCII 1 Keyboard 0 Movement Vi Keybinds 0 Fullscreen 1 Font 18/SmallcapsGlow Map View 76x50 Tactical HUD 1 Map Filters NONE Filters NONE Steam 1 RUN: ecc8b8aa-4e39-414f-b29e-238b92c23d31